[Event "Titled Tuesday Blitz December 27 Late 2022"]
[White "Zakhartsov, Vladimir"]
[Black "Karacsonyi, Gellert"]
[WhiteFideId "4145097"]
[BlackFideId "764620"]
[WhiteElo "2552"]
[BlackElo "2385"]
[Result "1-0"]
[Round "05"]
[TimeControl "180+2"]
[Date "2022.12.27"]
[WhiteClock "0:00:12"]
[BlackClock "0:00:09"]

1. c4 {[%clk 0:03:00]}  c5 {[%clk 0:02:59]} 2. Nc3 {[%clk 0:02:58]}  Nc6 {[%clk 0:02:59]} 3. Nf3 {[%clk 0:02:58]}  g6 {[%clk 0:02:59]} 4. g3 {[%clk 0:02:56]}  Bg7 {[%clk 0:02:58]} 5. Bg2 {[%clk 0:02:56]}  d6 {[%clk 0:02:59]} 6. a3 {[%clk 0:02:52]}  e5 {[%clk 0:02:57]} 7. O-O {[%clk 0:02:49]}  Nge7 {[%clk 0:02:57]} 8. b4 {[%clk 0:02:49]}  Be6 {[%clk 0:02:54]} 9. Ng5 {[%clk 0:02:19]}  Bxc4 {[%clk 0:02:48]} 10. d3 {[%clk 0:02:19]}  Be6 {[%clk 0:02:42]} 11. Nxe6 {[%clk 0:02:18]}  fxe6 {[%clk 0:02:43]} 12. bxc5 {[%clk 0:02:18]}  dxc5 {[%clk 0:02:42]} 13. Ne4 {[%clk 0:02:14]}  b6 {[%clk 0:02:39]} 14. Bg5 {[%clk 0:01:57]}  O-O {[%clk 0:02:37]} 15. Nxc5 {[%clk 0:01:54]}  bxc5 {[%clk 0:02:31]} 16. Bxc6 {[%clk 0:01:53]}  Rc8 {[%clk 0:02:31]} 17. Be4 {[%clk 0:01:51]}  Qd7 {[%clk 0:02:27]} 18. Bxe7 {[%clk 0:01:47]}  Qxe7 {[%clk 0:02:27]} 19. Qa4 {[%clk 0:01:42]}  Rf7 {[%clk 0:02:24]} 20. Rab1 {[%clk 0:01:38]}  Qd6 {[%clk 0:02:18]} 21. Qc4 {[%clk 0:01:34]}  Bh6 {[%clk 0:02:13]} 22. Kg2 {[%clk 0:01:30]}  Kg7 {[%clk 0:02:04]} 23. h4 {[%clk 0:01:29]}  Rcf8 {[%clk 0:02:03]} 24. Bf3 {[%clk 0:01:13]}  Bd2 {[%clk 0:01:45]} 25. Rb5 {[%clk 0:01:10]}  Rc7 {[%clk 0:01:37]} 26. Rd1 {[%clk 0:01:08]}  Bh6 {[%clk 0:01:37]} 27. Ra5 {[%clk 0:01:07]}  Rb8 {[%clk 0:01:29]} 28. h5 {[%clk 0:00:52]}  Rb6 {[%clk 0:01:26]} 29. hxg6 {[%clk 0:00:50]}  hxg6 {[%clk 0:01:27]} 30. Rh1 {[%clk 0:00:50]}  Qd4 {[%clk 0:01:25]} 31. Rh4 {[%clk 0:00:44]}  Qxc4 {[%clk 0:01:06]} 32. Rxc4 {[%clk 0:00:44]}  Rb3 {[%clk 0:01:06]} 33. Rca4 {[%clk 0:00:37]}  Bc1 {[%clk 0:00:49]} 34. Rxa7 {[%clk 0:00:36]}  Rxa7 {[%clk 0:00:50]} 35. Rxa7+ {[%clk 0:00:37]}  Kf6 {[%clk 0:00:51]} 36. a4 {[%clk 0:00:37]}  Ra3 {[%clk 0:00:52]} 37. a5 {[%clk 0:00:36]}  Bb2 {[%clk 0:00:44]} 38. a6 {[%clk 0:00:33]}  Ra2 {[%clk 0:00:42]} 39. Ra8 {[%clk 0:00:13]}  Bd4 {[%clk 0:00:43]} 40. g4 {[%clk 0:00:12]}  g5 {[%clk 0:00:41]} 41. Kg3 {[%clk 0:00:12]}  Ra1 {[%clk 0:00:39]} 42. e3 {[%clk 0:00:11]}  e4 {[%clk 0:00:38]} 43. Bxe4 {[%clk 0:00:11]}  Be5+ {[%clk 0:00:39]} 44. Kf3 {[%clk 0:00:11]}  Kg7 {[%clk 0:00:27]} 45. Bb7 {[%clk 0:00:11]}  Ra3 {[%clk 0:00:18]} 46. Rc8 {[%clk 0:00:11]}  Ra5 {[%clk 0:00:13]} 47. Rc6 {[%clk 0:00:10]}  Kf7 {[%clk 0:00:12]} 48. Bc8 {[%clk 0:00:10]}  Bh2 {[%clk 0:00:11]} 49. Bxe6+ {[%clk 0:00:10]}  Kg7 {[%clk 0:00:12]} 50. Bc4 {[%clk 0:00:10]}  Ra1 {[%clk 0:00:11]} 51. Rxc5 {[%clk 0:00:09]}  Bg1 {[%clk 0:00:11]} 52. Rxg5+ {[%clk 0:00:09]}  Kf6 {[%clk 0:00:11]} 53. Rf5+ {[%clk 0:00:10]}  Kg6 {[%clk 0:00:12]} 54. Kg2 {[%clk 0:00:09]}  Kg7 {[%clk 0:00:10]} 55. Rh5 {[%clk 0:00:09]}  Kg6 {[%clk 0:00:11]} 56. Rh1 {[%clk 0:00:09]}  Kg5 {[%clk 0:00:11]} 57. Rxg1 {[%clk 0:00:09]}  Ra5 {[%clk 0:00:11]} 58. Rh1 {[%clk 0:00:10]}  Kxg4 {[%clk 0:00:11]} 59. f3+ {[%clk 0:00:10]}  Kg5 {[%clk 0:00:11]} 60. Kg3 {[%clk 0:00:10]}  Ra3 {[%clk 0:00:10]} 61. f4+ {[%clk 0:00:11]}  Kg6 {[%clk 0:00:11]} 62. Kf3 {[%clk 0:00:11]}  Ra5 {[%clk 0:00:10]} 63. Rg1+ {[%clk 0:00:11]}  Kf6 {[%clk 0:00:11]} 64. Rg5 {[%clk 0:00:12]}  Ra1 {[%clk 0:00:10]} 65. Rg8 {[%clk 0:00:11]}  Ra3 {[%clk 0:00:10]} 66. Rb8 {[%clk 0:00:11]}  Ra1 {[%clk 0:00:10]} 67. Rb2 {[%clk 0:00:11]}  Kf5 {[%clk 0:00:09]} 68. e4+ {[%clk 0:00:11]}  Kf6 {[%clk 0:00:08]} 69. Ra2 {[%clk 0:00:11]}  Rf1+ {[%clk 0:00:08]} 70. Ke3 {[%clk 0:00:12]}  Re1+ {[%clk 0:00:09]} 71. Kd4 {[%clk 0:00:12]}  Rh1 {[%clk 0:00:09]} 72. a7 {[%clk 0:00:12]} 1-0


[Site "https://www.chess.com"]

[Event "Titled Tuesday Blitz December 27 Late 2022"]
[White "Albertini, Luca"]
[Black "Myers, Dominique"]
[WhiteFideId "847038"]
[BlackFideId "2041715"]
[WhiteElo "2084"]
[BlackElo "2042"]
[Result "1-0"]
[Round "06"]
[TimeControl "180+2"]
[Date "2022.12.27"]
[WhiteClock "0:02:16"]
[BlackClock "0:00:05"]

1. e4 {[%clk 0:03:00]}  e5 {[%clk 0:02:37]} 2. Nf3 {[%clk 0:03:00]}  Nc6 {[%clk 0:02:07]} 3. Bc4 {[%clk 0:02:59]}  Nf6 {[%clk 0:00:27]} 4. d3 {[%clk 0:02:57]}  Bc5 {[%clk 0:00:27]} 5. c3 {[%clk 0:02:55]}  d6 {[%clk 0:00:27]} 6. Nbd2 {[%clk 0:02:55]}  O-O {[%clk 0:00:25]} 7. Nf1 {[%clk 0:02:56]}  a6 {[%clk 0:00:22]} 8. Ng3 {[%clk 0:02:56]}  Be6 {[%clk 0:00:21]} 9. Bb3 {[%clk 0:02:55]}  Re8 {[%clk 0:00:20]} 10. O-O {[%clk 0:02:55]}  d5 {[%clk 0:00:20]} 11. exd5 {[%clk 0:02:53]}  Nxd5 {[%clk 0:00:21]} 12. Re1 {[%clk 0:02:51]}  f6 {[%clk 0:00:21]} 13. d4 {[%clk 0:02:48]}  exd4 {[%clk 0:00:20]} 14. Nxd4 {[%clk 0:02:43]}  Nxd4 {[%clk 0:00:20]} 15. cxd4 {[%clk 0:02:43]}  Bf8 {[%clk 0:00:20]} 16. Qf3 {[%clk 0:02:38]}  c6 {[%clk 0:00:20]} 17. Bd2 {[%clk 0:02:29]}  Bf7 {[%clk 0:00:09]} 18. Bc3 {[%clk 0:02:27]}  Qd7 {[%clk 0:00:09]} 19. Nf5 {[%clk 0:02:19]}  Bg6 {[%clk 0:00:05]} 20. Ne3 {[%clk 0:02:16]} 1-0


[Site "https://www.chess.com"]

[Event "Titled Tuesday Blitz December 27 Late 2022"]
[White "Antonica, Dragos-Andrei"]
[Black "Rustemov, Alexander"]
[WhiteFideId "1246372"]
[BlackFideId "4119002"]
[WhiteElo "2373"]
[BlackElo "2525"]
[Result "0-1"]
[Round "06"]
[TimeControl "180+2"]
[Date "2022.12.27"]
[WhiteClock "0:00:04"]
[BlackClock "0:00:19"]

1. c4 {[%clk 0:03:00]}  c5 {[%clk 0:02:59]} 2. Nc3 {[%clk 0:03:00]}  g6 {[%clk 0:02:59]} 3. g3 {[%clk 0:03:01]}  Bg7 {[%clk 0:02:59]} 4. Bg2 {[%clk 0:03:02]}  Nc6 {[%clk 0:02:59]} 5. Nf3 {[%clk 0:03:02]}  b6 {[%clk 0:02:59]} 6. O-O {[%clk 0:03:03]}  Bb7 {[%clk 0:02:59]} 7. b3 {[%clk 0:03:03]}  Bxc3 {[%clk 0:02:58]} 8. dxc3 {[%clk 0:03:03]}  d6 {[%clk 0:02:58]} 9. Bg5 {[%clk 0:02:53]}  h6 {[%clk 0:02:57]} 10. Be3 {[%clk 0:02:51]}  Kf8 {[%clk 0:02:56]} 11. Qc2 {[%clk 0:02:47]}  Kg7 {[%clk 0:02:56]} 12. h4 {[%clk 0:02:47]}  Nf6 {[%clk 0:02:55]} 13. Nd2 {[%clk 0:02:46]}  Qc7 {[%clk 0:02:54]} 14. Ne4 {[%clk 0:02:45]}  Nd7 {[%clk 0:02:49]} 15. h5 {[%clk 0:02:39]}  Nce5 {[%clk 0:02:41]} 16. hxg6 {[%clk 0:02:33]}  fxg6 {[%clk 0:02:40]} 17. f4 {[%clk 0:02:15]}  Ng4 {[%clk 0:02:38]} 18. Bd2 {[%clk 0:02:16]}  h5 {[%clk 0:02:25]} 19. Ng5 {[%clk 0:02:14]}  Nf8 {[%clk 0:02:24]} 20. f5 {[%clk 0:02:04]}  Bxg2 {[%clk 0:02:12]} 21. Kxg2 {[%clk 0:01:58]}  Qc6+ {[%clk 0:02:05]} 22. e4 {[%clk 0:01:52]}  h4 {[%clk 0:01:57]} 23. fxg6 {[%clk 0:01:48]}  hxg3 {[%clk 0:01:36]} 24. Rf7+ {[%clk 0:01:17]}  Kxg6 {[%clk 0:01:36]} 25. Kxg3 {[%clk 0:01:16]}  Ne5 {[%clk 0:01:26]} 26. Raf1 {[%clk 0:01:11]}  Qc8 {[%clk 0:01:24]} 27. R7f5 {[%clk 0:01:08]}  Rh5 {[%clk 0:01:04]} 28. Bf4 {[%clk 0:00:46]}  e6 {[%clk 0:00:55]} 29. Bxe5 {[%clk 0:00:21]}  exf5 {[%clk 0:00:42]} 30. exf5+ {[%clk 0:00:22]}  Kh6 {[%clk 0:00:43]} 31. Bf4 {[%clk 0:00:16]}  Rxg5+ {[%clk 0:00:29]} 32. Bxg5+ {[%clk 0:00:16]}  Kxg5 {[%clk 0:00:30]} 33. Qh2 {[%clk 0:00:14]}  Kf6 {[%clk 0:00:27]} 34. Qh4+ {[%clk 0:00:13]}  Kf7 {[%clk 0:00:27]} 35. Qh5+ {[%clk 0:00:13]}  Ke7 {[%clk 0:00:26]} 36. Re1+ {[%clk 0:00:09]}  Kd7 {[%clk 0:00:26]} 37. Qf7+ {[%clk 0:00:09]}  Kc6 {[%clk 0:00:23]} 38. Qd5+ {[%clk 0:00:09]}  Kc7 {[%clk 0:00:23]} 39. Re7+ {[%clk 0:00:06]}  Nd7 {[%clk 0:00:23]} 40. Re6 {[%clk 0:00:06]}  Qf8 {[%clk 0:00:20]} 41. f6 {[%clk 0:00:06]}  Re8 {[%clk 0:00:20]} 42. Qf5 {[%clk 0:00:02]}  Rxe6 {[%clk 0:00:19]} 43. Qxe6 {[%clk 0:00:03]}  Qxf6 {[%clk 0:00:20]} 44. Qe4 {[%clk 0:00:03]}  Qe5+ {[%clk 0:00:19]} 45. Qxe5 {[%clk 0:00:04]} 0-1


[Site "https://www.chess.com"]

[Event "Titled Tuesday Blitz December 27 Late 2022"]
[White "Antonios, Johnny"]
[Black "Silva, Miguel Antonio Neto"]
[WhiteFideId "5300843"]
[BlackFideId "1911929"]
[WhiteElo "2269"]
[BlackElo "2204"]
[Result "0-1"]
[Round "06"]
[TimeControl "180+2"]
[Date "2022.12.27"]
[WhiteClock "0:01:08"]
[BlackClock "0:00:49"]

1. e4 {[%clk 0:03:00]}  c5 {[%clk 0:02:59]} 2. Nf3 {[%clk 0:03:01]}  d6 {[%clk 0:02:55]} 3. d4 {[%clk 0:03:01]}  cxd4 {[%clk 0:02:56]} 4. Nxd4 {[%clk 0:03:02]}  Nf6 {[%clk 0:02:56]} 5. Nc3 {[%clk 0:03:02]}  a6 {[%clk 0:02:56]} 6. h3 {[%clk 0:03:03]}  e5 {[%clk 0:02:55]} 7. Nde2 {[%clk 0:03:02]}  h5 {[%clk 0:02:55]} 8. Bg5 {[%clk 0:03:02]}  Be6 {[%clk 0:02:53]} 9. Bxf6 {[%clk 0:03:03]}  Qxf6 {[%clk 0:02:53]} 10. Nd5 {[%clk 0:03:04]}  Qd8 {[%clk 0:02:53]} 11. Nec3 {[%clk 0:03:04]}  Nd7 {[%clk 0:02:53]} 12. Bc4 {[%clk 0:03:05]}  Be7 {[%clk 0:02:44]} 13. O-O {[%clk 0:03:04]}  Nf6 {[%clk 0:02:44]} 14. Nxf6+ {[%clk 0:02:35]}  Bxf6 {[%clk 0:02:42]} 15. Nd5 {[%clk 0:02:30]}  O-O {[%clk 0:02:27]} 16. Qxh5 {[%clk 0:02:29]}  Rc8 {[%clk 0:02:19]} 17. Bb3 {[%clk 0:02:29]}  Bxd5 {[%clk 0:02:19]} 18. exd5 {[%clk 0:02:27]}  b5 {[%clk 0:02:17]} 19. c3 {[%clk 0:02:27]}  g6 {[%clk 0:02:15]} 20. Qg4 {[%clk 0:02:26]}  Bg7 {[%clk 0:02:15]} 21. a4 {[%clk 0:02:26]}  Rb8 {[%clk 0:02:07]} 22. a5 {[%clk 0:01:45]}  Qe8 {[%clk 0:01:59]} 23. Bc2 {[%clk 0:01:42]}  f5 {[%clk 0:01:58]} 24. Qg3 {[%clk 0:01:42]}  e4 {[%clk 0:01:53]} 25. Rae1 {[%clk 0:01:42]}  b4 {[%clk 0:01:52]} 26. cxb4 {[%clk 0:01:37]}  Be5 {[%clk 0:01:41]} 27. Qb3 {[%clk 0:01:35]}  Qb5 {[%clk 0:01:30]} 28. f3 {[%clk 0:01:35]}  Qxb4 {[%clk 0:01:27]} 29. Qxb4 {[%clk 0:01:34]}  Rxb4 {[%clk 0:01:27]} 30. fxe4 {[%clk 0:01:35]}  f4 {[%clk 0:01:15]} 31. b3 {[%clk 0:01:34]}  Rc8 {[%clk 0:01:14]} 32. Re2 {[%clk 0:01:33]}  Rc5 {[%clk 0:01:13]} 33. Rb1 {[%clk 0:01:21]}  Rxa5 {[%clk 0:01:11]} 34. Bd3 {[%clk 0:01:22]}  Ra3 {[%clk 0:01:08]} 35. Bc4 {[%clk 0:01:22]}  a5 {[%clk 0:01:08]} 36. Rc1 {[%clk 0:01:17]}  Kg7 {[%clk 0:01:07]} 37. Kf2 {[%clk 0:01:13]}  Kf6 {[%clk 0:01:06]} 38. Kf3 {[%clk 0:01:13]}  a4 {[%clk 0:01:05]} 39. Kg4 {[%clk 0:01:14]}  axb3 {[%clk 0:01:04]} 40. g3 {[%clk 0:01:12]}  b2 {[%clk 0:01:01]} 41. Rb1 {[%clk 0:01:08]}  Rxg3+ {[%clk 0:01:00]} 42. Kh4 {[%clk 0:01:09]}  g5+ {[%clk 0:01:00]} 43. Kh5 {[%clk 0:01:10]}  Rxh3+ {[%clk 0:00:55]} 44. Kg4 {[%clk 0:01:10]}  Rg3+ {[%clk 0:00:49]} 45. Kh5 {[%clk 0:01:10]}  Rb8 {[%clk 0:00:49]} 46. Rbxb2 {[%clk 0:01:08]} 0-1


[Site "https://www.chess.com"]

[Event "Titled Tuesday Blitz December 27 Late 2022"]
[White "Arnold, Ken"]
[Black "Potapova, Margarita"]
[WhiteFideId "2056836"]
[BlackFideId "14126869"]
[WhiteElo "2355"]
[BlackElo "2104"]
[Result "0-1"]
[Round "06"]
[TimeControl "180+2"]
[Date "2022.12.27"]
[WhiteClock "0:00:33"]
[BlackClock "0:01:38"]

1. e4 {[%clk 0:03:00]}  c5 {[%clk 0:02:59]} 2. Nf3 {[%clk 0:03:00]}  d6 {[%clk 0:03:00]} 3. d4 {[%clk 0:03:00]}  cxd4 {[%clk 0:03:01]} 4. Qxd4 {[%clk 0:03:00]}  Nc6 {[%clk 0:03:00]} 5. Bb5 {[%clk 0:03:00]}  Bd7 {[%clk 0:03:01]} 6. Bxc6 {[%clk 0:03:01]}  Bxc6 {[%clk 0:03:02]} 7. c4 {[%clk 0:03:01]}  Nf6 {[%clk 0:03:02]} 8. Nc3 {[%clk 0:03:01]}  e6 {[%clk 0:03:02]} 9. Bg5 {[%clk 0:03:01]}  Be7 {[%clk 0:03:02]} 10. O-O {[%clk 0:03:01]}  O-O {[%clk 0:03:02]} 11. Rfd1 {[%clk 0:03:00]}  h6 {[%clk 0:02:59]} 12. Bh4 {[%clk 0:02:57]}  Qa5 {[%clk 0:02:53]} 13. a3 {[%clk 0:02:52]}  Qc5 {[%clk 0:02:50]} 14. Bxf6 {[%clk 0:02:33]}  Bxf6 {[%clk 0:02:44]} 15. Qxc5 {[%clk 0:02:30]}  dxc5 {[%clk 0:02:43]} 16. e5 {[%clk 0:02:09]}  Bxf3 {[%clk 0:02:40]} 17. gxf3 {[%clk 0:02:08]}  Bxe5 {[%clk 0:02:40]} 18. Rd7 {[%clk 0:02:07]}  b6 {[%clk 0:02:30]} 19. Rad1 {[%clk 0:02:05]}  Bd4 {[%clk 0:02:29]} 20. Rd3 {[%clk 0:01:55]}  Rfd8 {[%clk 0:02:26]} 21. Rxd8+ {[%clk 0:01:53]}  Rxd8 {[%clk 0:02:27]} 22. Kf1 {[%clk 0:01:52]}  Rd7 {[%clk 0:02:16]} 23. b4 {[%clk 0:01:44]}  Kf8 {[%clk 0:02:11]} 24. bxc5 {[%clk 0:01:42]}  bxc5 {[%clk 0:02:12]} 25. Ne4 {[%clk 0:01:36]}  Rb7 {[%clk 0:02:09]} 26. Nd6 {[%clk 0:01:16]}  Rb2 {[%clk 0:02:06]} 27. Nb5 {[%clk 0:01:12]}  e5 {[%clk 0:02:00]} 28. Nxd4 {[%clk 0:01:08]}  exd4 {[%clk 0:01:58]} 29. f4 {[%clk 0:01:03]}  Ke7 {[%clk 0:01:54]} 30. Rh3 {[%clk 0:00:58]}  Kd6 {[%clk 0:01:51]} 31. Rh5 {[%clk 0:00:57]}  Rc2 {[%clk 0:01:47]} 32. Rd5+ {[%clk 0:00:56]}  Kc6 {[%clk 0:01:47]} 33. Rd8 {[%clk 0:00:51]}  Rxc4 {[%clk 0:01:46]} 34. Rf8 {[%clk 0:00:51]}  d3 {[%clk 0:01:44]} 35. Ke1 {[%clk 0:00:50]}  Rc2 {[%clk 0:01:42]} 36. Rxf7 {[%clk 0:00:49]}  c4 {[%clk 0:01:42]} 37. Rxg7 {[%clk 0:00:39]}  c3 {[%clk 0:01:41]} 38. Rg6+ {[%clk 0:00:38]}  Kc5 {[%clk 0:01:41]} 39. Kd1 {[%clk 0:00:33]}  Rxf2 {[%clk 0:01:38]} 0-1


[Site "https://www.chess.com"]

[Event "Titled Tuesday Blitz December 27 Late 2022"]
[White "Ballester Llagaria, Luis Eduardo"]
[Black "Mekhitarian, Krikor Sevag"]
[WhiteFideId "2297620"]
[BlackFideId "2107660"]
[WhiteElo "2298"]
[BlackElo "2537"]
[Result "0-1"]
[Round "06"]
[TimeControl "180+2"]
[Date "2022.12.27"]
[WhiteClock "0:00:07"]
[BlackClock "0:00:02"]

1. e4 {[%clk 0:03:00]}  g6 {[%clk 0:02:54]} 2. d4 {[%clk 0:02:59]}  Bg7 {[%clk 0:02:55]} 3. Nc3 {[%clk 0:02:59]}  d6 {[%clk 0:02:55]} 4. Be3 {[%clk 0:02:58]}  a6 {[%clk 0:02:56]} 5. f4 {[%clk 0:02:59]}  b5 {[%clk 0:02:56]} 6. Nf3 {[%clk 0:02:58]}  Bb7 {[%clk 0:02:53]} 7. Bd3 {[%clk 0:02:58]}  Nd7 {[%clk 0:02:52]} 8. Qe2 {[%clk 0:02:59]}  c5 {[%clk 0:02:52]} 9. dxc5 {[%clk 0:02:58]}  Nxc5 {[%clk 0:02:50]} 10. Bxc5 {[%clk 0:02:58]}  dxc5 {[%clk 0:02:51]} 11. e5 {[%clk 0:02:58]}  Nh6 {[%clk 0:02:50]} 12. O-O-O {[%clk 0:02:59]}  Qb6 {[%clk 0:02:44]} 13. Be4 {[%clk 0:02:58]}  O-O {[%clk 0:02:44]} 14. Nd5 {[%clk 0:02:49]}  Bxd5 {[%clk 0:02:41]} 15. Rxd5 {[%clk 0:02:50]}  c4 {[%clk 0:02:36]} 16. h3 {[%clk 0:02:41]}  Ra7 {[%clk 0:02:33]} 17. g4 {[%clk 0:02:38]}  Qa5 {[%clk 0:02:21]} 18. Kb1 {[%clk 0:02:29]}  c3 {[%clk 0:02:22]} 19. Qe3 {[%clk 0:02:17]}  Rc7 {[%clk 0:02:15]} 20. b3 {[%clk 0:02:14]}  e6 {[%clk 0:02:07]} 21. Rd6 {[%clk 0:01:50]}  Rfc8 {[%clk 0:02:03]} 22. Rhd1 {[%clk 0:01:47]}  Bf8 {[%clk 0:02:02]} 23. Rd8 {[%clk 0:01:40]}  Qa3 {[%clk 0:01:27]} 24. Qc1 {[%clk 0:01:36]}  Qb4 {[%clk 0:01:27]} 25. Qe3 {[%clk 0:01:09]}  a5 {[%clk 0:01:12]} 26. f5 {[%clk 0:00:37]}  Qa3 {[%clk 0:01:00]} 27. Qc1 {[%clk 0:00:37]}  Qxc1+ {[%clk 0:01:00]} 28. Kxc1 {[%clk 0:00:38]}  exf5 {[%clk 0:00:54]} 29. gxf5 {[%clk 0:00:36]}  Nxf5 {[%clk 0:00:40]} 30. Bxf5 {[%clk 0:00:34]}  gxf5 {[%clk 0:00:41]} 31. Nh4 {[%clk 0:00:27]}  Rxd8 {[%clk 0:00:35]} 32. Rxd8 {[%clk 0:00:27]}  Kg7 {[%clk 0:00:36]} 33. Nxf5+ {[%clk 0:00:27]}  Kg6 {[%clk 0:00:35]} 34. Nh4+ {[%clk 0:00:23]}  Kg5 {[%clk 0:00:34]} 35. Nf3+ {[%clk 0:00:18]}  Kf4 {[%clk 0:00:33]} 36. Rxf8 {[%clk 0:00:19]}  Kxf3 {[%clk 0:00:33]} 37. e6 {[%clk 0:00:19]}  Kg3 {[%clk 0:00:28]} 38. Rxf7 {[%clk 0:00:17]}  Rc6 {[%clk 0:00:29]} 39. e7 {[%clk 0:00:14]}  Re6 {[%clk 0:00:29]} 40. Kd1 {[%clk 0:00:14]}  h5 {[%clk 0:00:29]} 41. Rh7 {[%clk 0:00:05]}  h4 {[%clk 0:00:27]} 42. a3 {[%clk 0:00:05]}  Kxh3 {[%clk 0:00:24]} 43. b4 {[%clk 0:00:06]}  a4 {[%clk 0:00:25]} 44. Rg7 {[%clk 0:00:06]}  Kh2 {[%clk 0:00:24]} 45. Rg4 {[%clk 0:00:05]}  h3 {[%clk 0:00:22]} 46. Rg7 {[%clk 0:00:06]}  Re5 {[%clk 0:00:19]} 47. Rh7 {[%clk 0:00:04]}  Kg3 {[%clk 0:00:17]} 48. Rg7+ {[%clk 0:00:05]}  Kf3 {[%clk 0:00:16]} 49. Rh7 {[%clk 0:00:05]}  Kg4 {[%clk 0:00:15]} 50. Rg7+ {[%clk 0:00:05]}  Kf4 {[%clk 0:00:16]} 51. Rh7 {[%clk 0:00:06]}  h2 {[%clk 0:00:02]} 52. Rg7 {[%clk 0:00:06]}  h1=Q+ {[%clk 0:00:02]} 53. Rg1 {[%clk 0:00:07]}  Qxg1# {[%clk 0:00:02]} 0-1


[Site "https://www.chess.com"]

[Event "Titled Tuesday Blitz December 27 Late 2022"]
[White "Bettalli, Francesco"]
[Black "Skvortsov, Andrei"]
[WhiteFideId "2816453"]
[BlackFideId "24108600"]
[WhiteElo "2252"]
[BlackElo "2313"]
[Result "0-1"]
[Round "06"]
[TimeControl "180+2"]
[Date "2022.12.27"]
[WhiteClock "0:00:49"]
[BlackClock "0:00:17"]

1. d4 {[%clk 0:03:00]}  Nf6 {[%clk 0:02:57]} 2. Nc3 {[%clk 0:03:01]}  d5 {[%clk 0:02:54]} 3. Bg5 {[%clk 0:03:00]}  c6 {[%clk 0:02:54]} 4. Bxf6 {[%clk 0:02:56]}  gxf6 {[%clk 0:02:55]} 5. e4 {[%clk 0:02:57]}  Qb6 {[%clk 0:02:54]} 6. Qd2 {[%clk 0:02:52]}  dxe4 {[%clk 0:02:51]} 7. Nxe4 {[%clk 0:02:53]}  Qxb2 {[%clk 0:02:50]} 8. Rd1 {[%clk 0:02:52]}  Qxa2 {[%clk 0:02:44]} 9. Nf3 {[%clk 0:02:52]}  Qe6 {[%clk 0:02:22]} 10. Qe3 {[%clk 0:02:46]}  f5 {[%clk 0:02:19]} 11. Nc5 {[%clk 0:02:43]}  Qxe3+ {[%clk 0:02:18]} 12. fxe3 {[%clk 0:02:44]}  Nd7 {[%clk 0:02:14]} 13. Nd3 {[%clk 0:02:42]}  e6 {[%clk 0:02:13]} 14. Kf2 {[%clk 0:02:42]}  Nf6 {[%clk 0:02:12]} 15. Nfe5 {[%clk 0:02:41]}  Ne4+ {[%clk 0:02:08]} 16. Ke1 {[%clk 0:02:41]}  f6 {[%clk 0:02:07]} 17. Nc4 {[%clk 0:02:40]}  Be7 {[%clk 0:02:00]} 18. Be2 {[%clk 0:02:39]}  b6 {[%clk 0:01:54]} 19. Bh5+ {[%clk 0:02:40]}  Kd8 {[%clk 0:01:53]} 20. Ra1 {[%clk 0:02:39]}  Kc7 {[%clk 0:01:52]} 21. Ke2 {[%clk 0:02:36]}  Rg8 {[%clk 0:01:52]} 22. g3 {[%clk 0:02:36]}  a5 {[%clk 0:01:47]} 23. Bf3 {[%clk 0:02:32]}  a4 {[%clk 0:01:46]} 24. Nd2 {[%clk 0:02:29]}  Ba6 {[%clk 0:01:43]} 25. Nxe4 {[%clk 0:02:26]}  fxe4 {[%clk 0:01:43]} 26. Bxe4 {[%clk 0:02:27]}  Bc4 {[%clk 0:01:41]} 27. Kd2 {[%clk 0:02:24]}  h6 {[%clk 0:01:29]} 28. Rhb1 {[%clk 0:02:18]}  b5 {[%clk 0:01:28]} 29. Nb4 {[%clk 0:02:14]}  f5 {[%clk 0:01:09]} 30. Bf3 {[%clk 0:02:11]}  Bxb4+ {[%clk 0:01:06]} 31. Rxb4 {[%clk 0:02:11]}  h5 {[%clk 0:00:57]} 32. e4 {[%clk 0:01:57]}  h4 {[%clk 0:00:50]} 33. gxh4 {[%clk 0:01:54]}  fxe4 {[%clk 0:00:50]} 34. Bxe4 {[%clk 0:01:54]}  Rg4 {[%clk 0:00:50]} 35. Ke3 {[%clk 0:01:50]}  Rxh4 {[%clk 0:00:50]} 36. Rg1 {[%clk 0:01:51]}  Rh3+ {[%clk 0:00:48]} 37. Kf4 {[%clk 0:01:49]}  Kd6 {[%clk 0:00:41]} 38. Rbb1 {[%clk 0:01:37]}  Rf8+ {[%clk 0:00:39]} 39. Kg5 {[%clk 0:01:32]}  Rxh2 {[%clk 0:00:36]} 40. Rbe1 {[%clk 0:01:30]}  a3 {[%clk 0:00:33]} 41. Kg6 {[%clk 0:01:20]}  Rhh8 {[%clk 0:00:25]} 42. Kg7 {[%clk 0:01:06]}  Rfg8+ {[%clk 0:00:25]} 43. Kf6 {[%clk 0:01:06]}  Rxg1 {[%clk 0:00:24]} 44. Rxg1 {[%clk 0:01:05]}  a2 {[%clk 0:00:25]} 45. Kg7 {[%clk 0:01:01]}  Rh4 {[%clk 0:00:24]} 46. Bf3 {[%clk 0:01:00]}  Rxd4 {[%clk 0:00:24]} 47. Kf8 {[%clk 0:00:59]}  Rf4+ {[%clk 0:00:24]} 48. Ke8 {[%clk 0:00:57]}  Rxf3 {[%clk 0:00:23]} 49. c3 {[%clk 0:00:53]}  Rxc3 {[%clk 0:00:22]} 50. Kd8 {[%clk 0:00:51]}  Ra3 {[%clk 0:00:21]} 51. Kc8 {[%clk 0:00:48]}  a1=Q {[%clk 0:00:20]} 52. Rxa1 {[%clk 0:00:46]}  Rxa1 {[%clk 0:00:21]} 53. Kb7 {[%clk 0:00:46]}  b4 {[%clk 0:00:21]} 54. Kc8 {[%clk 0:00:47]}  b3 {[%clk 0:00:19]} 55. Kb7 {[%clk 0:00:48]}  b2 {[%clk 0:00:19]} 56. Kc8 {[%clk 0:00:49]}  b1=Q {[%clk 0:00:17]} 0-1


[Site "https://www.chess.com"]